[Event "Live Chess"]
[Site "Chess.com"]
[Date "2023.09.16"]
[Round "-"]
[White "Gabriel0298"]
[Black "guto-XVI"]
[Result "1-0"]
[WhiteElo "1617"]
[BlackElo "1575"]
[TimeControl "900+5"]
[EndTime "15:02:58 PDT"]
[Termination "Gabriel0298 venceu por desistência"]

1. e4 {[%clk 0:15:03.4]} 1... c5 {[%clk 0:15:04.2]} 2. Nf3 {[%clk 0:15:07.3]}
2... Nc6 {[%clk 0:15:08]} 3. d4 {[%clk 0:15:11.8]} 3... cxd4 {[%clk 0:15:12.1]}
4. Nxd4 {[%clk 0:15:16.7]} 4... Nf6 {[%clk 0:15:16.2]} 5. Nc3 {[%clk 0:15:20.8]}
5... e5 {[%clk 0:15:20.4]} 6. Ndb5 {[%clk 0:15:24.5]} 6... d6 {[%clk 0:15:23.8]}
7. Bg5 {[%clk 0:15:28.1]} 7... Be7 {[%clk 0:15:27.9]} 8. Bxf6 {[%clk 0:15:31.4]}
8... Bxf6 {[%clk 0:15:32.1]} 9. Nd5 {[%clk 0:15:35.9]} 9... Be7 {[%clk
0:15:33.3]} 10. Nbc7+ {[%clk 0:15:39.1]} 10... Kf8 {[%clk 0:15:30.8]} 11. Nxa8
{[%clk 0:15:44]} 11... Be6 {[%clk 0:15:34.9]} 12. Nac7 {[%clk 0:15:47]} 12...
Bxd5 {[%clk 0:15:37]} 13. Nxd5 {[%clk 0:15:51.9]} 13... g6 {[%clk 0:15:39]} 14.
Nxe7 {[%clk 0:15:53.2]} 14... Qxe7 {[%clk 0:15:42.9]} 15. c3 {[%clk 0:15:57.6]}
15... Kg7 {[%clk 0:15:46.9]} 16. Qc2 {[%clk 0:15:59.5]} 16... Rd8 {[%clk
0:15:48.4]} 17. O-O-O {[%clk 0:16:02.7]} 1-0

[Event "Live Chess"]
[Site "Chess.com"]
[Date "2023.09.16"]
[Round "-"]
[White "Miinero"]
[Black "Larissa1413"]
[Result "0-1"]
[WhiteElo "1934"]
[BlackElo "1920"]
[TimeControl "900+5"]
[EndTime "15:04:02 PDT"]
[Termination "Larissa1413 venceu por desistência"]

1. c4 {[%clk 0:14:57.1]} 1... e6 {[%clk 0:15:03.2]} 2. Nc3 {[%clk 0:15:00.4]}
2... f5 {[%clk 0:15:05.1]} 3. g3 {[%clk 0:15:02.2]} 3... Nf6 {[%clk 0:15:06.6]}
4. Bg2 {[%clk 0:15:06.7]} 4... c6 {[%clk 0:15:09.2]} 5. e4 {[%clk 0:15:08.8]}
5... fxe4 {[%clk 0:15:04.6]} 6. Nxe4 {[%clk 0:15:13.7]} 6... d5 {[%clk
0:15:04.5]} 7. Nxf6+ {[%clk 0:15:13.5]} 7... Qxf6 {[%clk 0:15:05.7]} 8. Nf3
{[%clk 0:15:06.9]} 8... h6 {[%clk 0:14:59.1]} 9. d4 {[%clk 0:15:08.9]} 9... Bd6
{[%clk 0:15:00.3]} 10. O-O {[%clk 0:15:12.3]} 10... O-O {[%clk 0:15:02.1]} 11.
c5 {[%clk 0:15:12.6]} 11... Bc7 {[%clk 0:15:04.3]} 12. Qe2 {[%clk 0:15:08.6]}
12... b6 {[%clk 0:15:03]} 13. b4 {[%clk 0:15:09.2]} 13... Ba6 {[%clk 0:15:00.9]}
0-1

[Event "Live Chess"]
[Site "Chess.com"]
[Date "2023.09.16"]
[Round "-"]
[White "silvaaps"]
[Black "Luisgustavo100"]
[Result "0-1"]
[WhiteElo "764"]
[BlackElo "932"]
[TimeControl "900+5"]
[EndTime "15:07:36 PDT"]
[Termination "Luisgustavo100 venceu por desistência"]

1. e4 {[%clk 0:15:04.5]} 1... c5 {[%clk 0:15:02.3]} 2. Nf3 {[%clk 0:15:06.8]}
2... d6 {[%clk 0:15:01.6]} 3. Bc4 {[%clk 0:15:09.7]} 3... e6 {[%clk 0:15:04.4]}
4. O-O {[%clk 0:15:13.5]} 4... Nc6 {[%clk 0:15:07.8]} 5. Bb5 {[%clk 0:15:17]}
5... Nf6 {[%clk 0:15:08.4]} 6. Bxc6+ {[%clk 0:15:19.9]} 6... bxc6 {[%clk
0:15:12]} 7. Nc3 {[%clk 0:15:23.6]} 7... Be7 {[%clk 0:15:10.9]} 8. e5 {[%clk
0:15:25]} 8... Nd5 {[%clk 0:15:00.7]} 9. Nxd5 {[%clk 0:15:28.3]} 9... cxd5
{[%clk 0:14:59.1]} 10. exd6 {[%clk 0:15:31.9]} 10... Bxd6 {[%clk 0:15:02]} 11.
d3 {[%clk 0:15:35.2]} 11... O-O {[%clk 0:15:04.8]} 12. c4 {[%clk 0:15:35.8]}
12... Rb8 {[%clk 0:14:49.9]} 13. b3 {[%clk 0:15:34.1]} 13... Re8 {[%clk
0:14:50.2]} 14. cxd5 {[%clk 0:15:24.1]} 14... exd5 {[%clk 0:14:51.9]} 15. Re1
{[%clk 0:15:25.5]} 15... Bg4 {[%clk 0:14:46.8]} 16. Rxe8+ {[%clk 0:15:28.1]}
16... Qxe8 {[%clk 0:14:47.7]} 17. h3 {[%clk 0:15:31.3]} 17... Bxf3 {[%clk
0:14:40]} 18. gxf3 {[%clk 0:15:32.6]} 18... Qe5 {[%clk 0:14:31.4]} 19. Kg2
{[%clk 0:15:36.4]} 19... Qxa1 {[%clk 0:14:22.8]} 20. Qc2 {[%clk 0:15:28.4]}
20... Qe5 {[%clk 0:14:13.7]} 21. Kf1 {[%clk 0:15:25.7]} 21... h6 {[%clk
0:14:03.6]} 22. f4 {[%clk 0:15:27.7]} 22... Qd4 {[%clk 0:13:59]} 23. Be3 {[%clk
0:15:21.8]} 23... Qa1+ {[%clk 0:13:42.6]} 24. Qc1 {[%clk 0:15:23]} 24... Qxc1+
{[%clk 0:13:44.2]} 25. Bxc1 {[%clk 0:15:27.1]} 25... Re8 {[%clk 0:13:33]} 26.
Kg2 {[%clk 0:15:30.4]} 26... Re2 {[%clk 0:13:33.3]} 27. a4 {[%clk 0:15:33]}
27... Re6 {[%clk 0:13:13.4]} 0-1

[Event "Live Chess"]
[Site "Chess.com"]
[Date "2023.09.16"]
[Round "-"]
[White "RDW085"]
[Black "Yurxx21"]
[Result "0-1"]
[WhiteElo "1421"]
[BlackElo "1491"]
[TimeControl "900+5"]
[EndTime "15:09:30 PDT"]
[Termination "Yurxx21 venceu por desistência"]

1. e4 {[%clk 0:15:02.4]} 1... c5 {[%clk 0:15:03.9]} 2. Nf3 {[%clk 0:15:06.3]}
2... d6 {[%clk 0:15:08.4]} 3. d4 {[%clk 0:15:09.5]} 3... cxd4 {[%clk 0:15:13.3]}
4. Nxd4 {[%clk 0:15:13.9]} 4... Nf6 {[%clk 0:15:18.2]} 5. Nc3 {[%clk 0:15:18.4]}
5... a6 {[%clk 0:15:22.7]} 6. Be3 {[%clk 0:15:22.4]} 6... e5 {[%clk 0:15:26]} 7.
Nf3 {[%clk 0:15:22.3]} 7... Be6 {[%clk 0:15:29.8]} 8. Be2 {[%clk 0:15:24.7]}
8... Be7 {[%clk 0:15:34.1]} 9. O-O {[%clk 0:15:28.6]} 9... O-O {[%clk
0:15:38.6]} 10. a3 {[%clk 0:15:16.6]} 10... Nc6 {[%clk 0:15:40.4]} 11. b4 {[%clk
0:15:17.7]} 11... Rc8 {[%clk 0:15:41.6]} 12. Na4 {[%clk 0:15:00.8]} 12... b5
{[%clk 0:15:43.9]} 13. Nb6 {[%clk 0:14:44.1]} 13... Rb8 {[%clk 0:15:23.1]} 14.
c3 {[%clk 0:14:35.8]} 14... Rxb6 {[%clk 0:15:24.2]} 15. Bxb6 {[%clk 0:14:36.5]}
15... Qxb6 {[%clk 0:15:29.1]} 16. Qc2 {[%clk 0:14:33.5]} 16... Rc8 {[%clk
0:14:48.8]} 17. Rfd1 {[%clk 0:14:25.9]} 17... h6 {[%clk 0:14:32.8]} 18. c4
{[%clk 0:13:53.4]} 18... bxc4 {[%clk 0:14:25.5]} 19. Bxc4 {[%clk 0:13:58.3]}
19... Nd4 {[%clk 0:14:16.8]} 20. Nxd4 {[%clk 0:12:57.4]} 20... exd4 {[%clk
0:14:21.7]} 21. Qd2 {[%clk 0:12:36.6]} 21... Rxc4 {[%clk 0:14:16.1]} 22. Qd3
{[%clk 0:12:32.3]} 22... Qb5 {[%clk 0:13:35.6]} 0-1

[Event "Live Chess"]
[Site "Chess.com"]
[Date "2023.09.16"]
[Round "-"]
[White "Japaawz"]
[Black "Joasgodoy"]
[Result "0-1"]
[WhiteElo "392"]
[BlackElo "682"]
[TimeControl "900+5"]
[EndTime "15:10:34 PDT"]
[Termination "Joasgodoy venceu por xeque-mate"]

1. e4 {[%clk 0:15:01.2]} 1... Nc6 {[%clk 0:14:57.2]} 2. d3 {[%clk 0:15:03.5]}
2... d5 {[%clk 0:14:56.9]} 3. Nf3 {[%clk 0:15:03.2]} 3... dxe4 {[%clk 0:14:55]}
4. dxe4 {[%clk 0:15:06]} 4... Qxd1+ {[%clk 0:14:48.3]} 5. Kxd1 {[%clk
0:15:10.9]} 5... Bg4 {[%clk 0:14:49.4]} 6. Bc4 {[%clk 0:15:11.8]} 6... e6 {[%clk
0:14:42.1]} 7. h3 {[%clk 0:15:00.5]} 7... Bxf3+ {[%clk 0:14:39.9]} 8. gxf3
{[%clk 0:15:03.7]} 8... O-O-O+ {[%clk 0:14:25.9]} 9. Ke1 {[%clk 0:14:53.7]} 9...
Bc5 {[%clk 0:14:05.4]} 10. Rf1 {[%clk 0:14:54.8]} 10... Nd4 {[%clk 0:13:59.3]}
11. Nc3 {[%clk 0:14:56.6]} 11... Nxc2+ {[%clk 0:13:59.2]} 12. Ke2 {[%clk
0:14:54.4]} 12... Nxa1 {[%clk 0:13:57.4]} 13. Bg5 {[%clk 0:14:57.7]} 13... Nc2
{[%clk 0:13:51.9]} 14. Nb5 {[%clk 0:14:58.1]} 14... Nf6 {[%clk 0:13:21.5]} 15.
Bb3 {[%clk 0:14:49.8]} 15... a6 {[%clk 0:13:09]} 16. Nc3 {[%clk 0:14:51.2]}
16... Nd4+ {[%clk 0:13:06.5]} 17. Ke3 {[%clk 0:14:33.3]} 17... Nxb3+ {[%clk
0:13:03.4]} 18. Ke2 {[%clk 0:14:33.6]} 18... Rd2+ {[%clk 0:12:58]} 19. Ke1
{[%clk 0:14:34]} 19... Rxb2 {[%clk 0:12:28.4]} 20. f4 {[%clk 0:14:33.2]} 20...
Bb4 {[%clk 0:12:22.3]} 21. Bxf6 {[%clk 0:14:28.5]} 21... Be7 {[%clk 0:12:19]}
22. Bxg7 {[%clk 0:14:31]} 22... Rd8 {[%clk 0:12:08.2]} 23. a3 {[%clk 0:14:23.6]}
23... Bxa3 {[%clk 0:11:42.6]} 24. f5 {[%clk 0:14:19.6]} 24... Rdd2 {[%clk
0:11:33.9]} 25. fxe6 {[%clk 0:14:19.6]} 25... fxe6 {[%clk 0:11:24.5]} 26. h4
{[%clk 0:14:20.9]} 26... Bb4 {[%clk 0:11:23.4]} 27. Na4 {[%clk 0:14:19.8]} 27...
Rb1# {[%clk 0:11:22.2]} 0-1

[Event "Live Chess"]
[Site "Chess.com"]
[Date "2023.09.16"]
[Round "-"]
[White "Miinero"]
[Black "Gabriel0298"]
[Result "1-0"]
[WhiteElo "1941"]
[BlackElo "1615"]
[TimeControl "900+5"]
[EndTime "15:11:01 PDT"]
[Termination "Miinero venceu por desistência"]

1. e4 {[%clk 0:14:57.4]} 1... e6 {[%clk 0:15:04.1]} 2. d4 {[%clk 0:14:59.9]}
2... d5 {[%clk 0:15:08.8]} 3. e5 {[%clk 0:15:04.2]} 3... c5 {[%clk 0:15:12.5]}
4. c3 {[%clk 0:15:06.9]} 4... Nc6 {[%clk 0:15:16.9]} 5. Nf3 {[%clk 0:15:11]}
5... Qb6 {[%clk 0:15:21.3]} 6. Bd3 {[%clk 0:15:14.3]} 6... Bd7 {[%clk
0:15:24.8]} 7. O-O {[%clk 0:15:17.8]} 7... cxd4 {[%clk 0:15:29]} 8. Re1 {[%clk
0:15:22.2]} 8... dxc3 {[%clk 0:15:32.3]} 9. Nxc3 {[%clk 0:15:27.1]} 9... Bb4
{[%clk 0:15:24.2]} 10. Bd2 {[%clk 0:15:27.5]} 10... Nge7 {[%clk 0:15:10.4]} 11.
Rc1 {[%clk 0:15:22.9]} 11... h6 {[%clk 0:15:11.6]} 12. Qe2 {[%clk 0:15:23.5]}
12... O-O {[%clk 0:15:09.4]} 13. Bb1 {[%clk 0:15:19.8]} 13... Ng6 {[%clk
0:15:09.1]} 14. a3 {[%clk 0:15:06.6]} 14... Be7 {[%clk 0:14:57.5]} 15. Qd3
{[%clk 0:15:02.3]} 15... Rac8 {[%clk 0:14:45.6]} 16. h4 {[%clk 0:14:58.7]} 16...
Rfe8 {[%clk 0:14:43.8]} 17. h5 {[%clk 0:14:51.2]} 17... Nf8 {[%clk 0:14:48.2]}
18. b4 {[%clk 0:14:43.9]} 18... a5 {[%clk 0:14:30.7]} 19. b5 {[%clk 0:14:47]}
19... Na7 {[%clk 0:14:34.5]} 20. a4 {[%clk 0:14:50.5]} 20... Bb4 {[%clk
0:14:35.8]} 21. Nh4 {[%clk 0:14:33.8]} 21... Rc7 {[%clk 0:14:19]} 22. Qg3 {[%clk
0:14:34.8]} 22... Nh7 {[%clk 0:13:21.3]} 23. Bxh6 {[%clk 0:14:31.4]} 23... Bf8
{[%clk 0:13:25.8]} 24. Qd3 {[%clk 0:14:15.4]} 1-0

[Event "Live Chess"]
[Site "Chess.com"]
[Date "2023.09.16"]
[Round "-"]
[White "Larissa1413"]
[Black "Cantalicioo"]
[Result "1-0"]
[WhiteElo "1922"]
[BlackElo "1474"]
[TimeControl "900+5"]
[EndTime "15:11:52 PDT"]
[Termination "Larissa1413 venceu por desistência"]

1. d4 {[%clk 0:14:44.9]} 1... Nf6 {[%clk 0:14:38.7]} 2. c4 {[%clk 0:14:45.3]}
2... g6 {[%clk 0:14:33.7]} 3. Nc3 {[%clk 0:14:47.6]} 3... Bg7 {[%clk 0:14:33]}
4. e4 {[%clk 0:14:50.1]} 4... d6 {[%clk 0:14:34.2]} 5. Nf3 {[%clk 0:14:52]} 5...
O-O {[%clk 0:14:36]} 6. h3 {[%clk 0:14:54.1]} 6... c5 {[%clk 0:14:36.1]} 7. d5
{[%clk 0:14:53.4]} 7... e6 {[%clk 0:14:34.5]} 8. Bd3 {[%clk 0:14:53.5]} 8... Re8
{[%clk 0:14:34.4]} 9. O-O {[%clk 0:14:55.7]} 9... a6 {[%clk 0:14:35.5]} 10. Re1
{[%clk 0:14:58.5]} 10... exd5 {[%clk 0:14:15.7]} 11. exd5 {[%clk 0:14:59.3]}
11... Nbd7 {[%clk 0:14:12.8]} 12. Bg5 {[%clk 0:14:59.5]} 12... h6 {[%clk
0:14:12.7]} 13. Bh4 {[%clk 0:15:01.2]} 13... Rb8 {[%clk 0:14:04.3]} 14. Rb1
{[%clk 0:14:56.3]} 14... g5 {[%clk 0:13:57.8]} 15. Bg3 {[%clk 0:14:57.7]} 15...
Nh5 {[%clk 0:13:56.4]} 16. Bxd6 {[%clk 0:14:51.7]} 16... Ndf6 {[%clk 0:13:46.6]}
17. Bxb8 {[%clk 0:14:50.9]} 17... Rxe1+ {[%clk 0:13:49]} 18. Qxe1 {[%clk
0:14:47.5]} 18... Bxh3 {[%clk 0:13:48.7]} 19. Bh2 {[%clk 0:14:18.8]} 19... Bd7
{[%clk 0:13:36.2]} 20. Ne4 {[%clk 0:14:11]} 20... Ng4 {[%clk 0:13:34.1]} 21.
Nxc5 {[%clk 0:14:05.3]} 21... Nxh2 {[%clk 0:13:26.5]} 22. Nxh2 {[%clk
0:14:04.1]} 22... Bd4 {[%clk 0:12:54.8]} 23. Nxd7 {[%clk 0:13:54.5]} 23... Qxd7
{[%clk 0:12:58.5]} 24. Qe4 {[%clk 0:13:52.2]} 1-0

[Event "Live Chess"]
[Site "Chess.com"]
[Date "2023.09.16"]
[Round "-"]
[White "ViniciusBritoFc"]
[Black "abcgames2904"]
[Result "0-1"]
[WhiteElo "1174"]
[BlackElo "1185"]
[TimeControl "900+5"]
[EndTime "15:14:36 PDT"]
[Termination "abcgames2904 venceu por xeque-mate"]

1. c4 {[%clk 0:15:02.2]} 1... g6 {[%clk 0:14:56.7]} 2. Nc3 {[%clk 0:15:06.2]}
2... Bg7 {[%clk 0:15:00.8]} 3. Nf3 {[%clk 0:15:09.2]} 3... Nf6 {[%clk
0:15:05.4]} 4. Qc2 {[%clk 0:15:12.3]} 4... O-O {[%clk 0:15:07]} 5. e4 {[%clk
0:15:16.4]} 5... d6 {[%clk 0:15:10.4]} 6. Be2 {[%clk 0:15:20.5]} 6... c5 {[%clk
0:15:12.7]} 7. O-O {[%clk 0:15:22.7]} 7... b6 {[%clk 0:15:15.4]} 8. d3 {[%clk
0:15:19.9]} 8... Nc6 {[%clk 0:15:18.8]} 9. a3 {[%clk 0:15:19.8]} 9... a5 {[%clk
0:15:20.7]} 10. Nb5 {[%clk 0:15:21]} 10... e5 {[%clk 0:15:22.7]} 11. h3 {[%clk
0:15:18.9]} 11... h6 {[%clk 0:15:25.5]} 12. a4 {[%clk 0:15:05.2]} 12... Ba6
{[%clk 0:14:57.3]} 13. Qb3 {[%clk 0:14:37.2]} 13... Nh5 {[%clk 0:14:50.1]} 14.
Be3 {[%clk 0:13:37.6]} 14... Nf4 {[%clk 0:14:32.2]} 15. Bxf4 {[%clk 0:13:40.2]}
15... exf4 {[%clk 0:14:35.3]} 16. Rfd1 {[%clk 0:13:43.9]} 16... Qf6 {[%clk
0:14:28.3]} 17. Ra2 {[%clk 0:13:39.6]} 17... Bxb5 {[%clk 0:14:30.3]} 18. Qxb5
{[%clk 0:13:41.2]} 18... Ne5 {[%clk 0:14:08.6]} 19. Rb1 {[%clk 0:13:20.2]} 19...
Rfb8 {[%clk 0:14:05]} 20. b3 {[%clk 0:13:04]} 20... h5 {[%clk 0:13:13]} 21. h4
{[%clk 0:11:58.2]} 21... Nxf3+ {[%clk 0:13:01.2]} 22. Bxf3 {[%clk 0:12:02.7]}
22... Qxh4 {[%clk 0:13:05.4]} 23. g3 {[%clk 0:11:32.3]} 23... fxg3 {[%clk
0:13:07.6]} 24. Kf1 {[%clk 0:11:34.2]} 24... gxf2 {[%clk 0:13:01]} 25. Rxf2
{[%clk 0:11:31.3]} 25... Bd4 {[%clk 0:13:03.4]} 26. Rg2 {[%clk 0:11:33]} 26...
Qh3 {[%clk 0:13:04.1]} 27. Ke2 {[%clk 0:11:21]} 27... Ra7 {[%clk 0:12:42]} 28.
Rh1 {[%clk 0:11:21.5]} 28... Qxh1 {[%clk 0:12:44.9]} 29. Rxg6+ {[%clk
0:11:25.1]} 29... fxg6 {[%clk 0:12:46.5]} 30. Bxh1 {[%clk 0:11:29]} 30... Rf8
{[%clk 0:12:51.2]} 31. Bf3 {[%clk 0:11:29.4]} 31... Raf7 {[%clk 0:12:54.3]} 32.
Qc6 {[%clk 0:11:26.9]} 32... Rxf3 {[%clk 0:12:58]} 33. Qd5+ {[%clk 0:11:12.5]}
33... Kg7 {[%clk 0:12:58.9]} 34. Qb7+ {[%clk 0:10:11.7]} 34... R8f7 {[%clk
0:13:02.6]} 35. Qxb6 {[%clk 0:10:05]} 35... Rf2+ {[%clk 0:13:05.4]} 36. Ke1
{[%clk 0:10:08.8]} 36... Rf1+ {[%clk 0:13:08.7]} 37. Ke2 {[%clk 0:10:12.3]}
37... R7f2# {[%clk 0:13:13.6]} 0-1

[Event "Live Chess"]
[Site "Chess.com"]
[Date "2023.09.16"]
[Round "-"]
[White "Japaawz"]
[Black "Miinero"]
[Result "0-1"]
[WhiteElo "392"]
[BlackElo "1941"]
[TimeControl "900+5"]
[EndTime "15:15:20 PDT"]
[Termination "Miinero venceu por xeque-mate"]

1. e4 {[%clk 0:14:59.3]} 1... e5 {[%clk 0:15:03.5]} 2. d3 {[%clk 0:15:02.8]}
2... Nc6 {[%clk 0:15:07.1]} 3. Nf3 {[%clk 0:15:07]} 3... f5 {[%clk 0:15:11.5]}
4. Ng5 {[%clk 0:15:09.1]} 4... Nf6 {[%clk 0:15:00.3]} 5. Be3 {[%clk 0:15:09.1]}
5... Be7 {[%clk 0:14:59.5]} 6. h4 {[%clk 0:15:09.1]} 6... h6 {[%clk 0:15:00.3]}
7. Nf3 {[%clk 0:15:09.1]} 7... fxe4 {[%clk 0:15:03.4]} 8. dxe4 {[%clk
0:15:12.6]} 8... Nxe4 {[%clk 0:14:53.5]} 9. Bd3 {[%clk 0:14:57.8]} 9... Nf6
{[%clk 0:14:49.4]} 10. O-O {[%clk 0:14:58.5]} 10... e4 {[%clk 0:14:52.6]} 11.
Bd4 {[%clk 0:14:42.3]} 11... exf3 {[%clk 0:14:51.7]} 12. Bxf6 {[%clk 0:14:45.3]}
12... Bxf6 {[%clk 0:14:53]} 13. Qxf3 {[%clk 0:14:47.2]} 13... Ne5 {[%clk
0:14:47.1]} 14. Qe3 {[%clk 0:14:48.2]} 14... O-O {[%clk 0:14:49.3]} 15. Bc4+
{[%clk 0:14:50.1]} 15... d5 {[%clk 0:14:52.8]} 16. Bb3 {[%clk 0:14:51.5]} 16...
Kh8 {[%clk 0:14:52.1]} 17. Qd3 {[%clk 0:14:54]} 17... c5 {[%clk 0:14:54.5]} 18.
Na3 {[%clk 0:14:56.7]} 18... c4 {[%clk 0:14:58]} 19. Nxc4 {[%clk 0:15:00.3]}
19... dxc4 {[%clk 0:15:02.4]} 20. Bxc4 {[%clk 0:15:04.3]} 20... Nxd3 {[%clk
0:15:05.9]} 21. Bxd3 {[%clk 0:15:07.2]} 21... Qd4 {[%clk 0:15:05.4]} 22. Rfd1
{[%clk 0:15:12.1]} 22... Qxh4 {[%clk 0:15:08.5]} 23. Rd2 {[%clk 0:15:00.6]}
23... Be5 {[%clk 0:15:12.4]} 24. Kf1 {[%clk 0:15:03]} 24... Qh1+ {[%clk
0:15:12.8]} 25. Ke2 {[%clk 0:15:02.8]} 25... Bg4+ {[%clk 0:15:15.5]} 26. f3
{[%clk 0:15:03.9]} 26... Qxg2+ {[%clk 0:15:19.4]} 27. Ke3 {[%clk 0:15:04.6]}
27... Qxf3# {[%clk 0:15:23.5]} 0-1

[Event "Live Chess"]
[Site "Chess.com"]
[Date "2023.09.16"]
[Round "-"]
[White "Tercette"]
[Black "Sophowl"]
[Result "1/2-1/2"]
[WhiteElo "235"]
[BlackElo "265"]
[TimeControl "900+5"]
[EndTime "15:16:08 PDT"]
[Termination "Partida empatada por acordo"]

1. e4 {[%clk 0:14:59.7]} 1... e5 {[%clk 0:15:02.7]} 2. Nc3 {[%clk 0:15:02.1]}
2... f6 {[%clk 0:15:04.9]} 3. f3 {[%clk 0:14:56.9]} 3... d6 {[%clk 0:14:55.4]}
4. Bc4 {[%clk 0:14:55]} 4... Nh6 {[%clk 0:14:53]} 5. f4 {[%clk 0:14:57.1]} 5...
exf4 {[%clk 0:14:53.9]} 6. Nge2 {[%clk 0:14:59.2]} 6... f5 {[%clk 0:14:17.5]} 7.
O-O {[%clk 0:15:01.7]} 7... Qg5 {[%clk 0:13:56.3]} 8. Nxf4 {[%clk 0:14:37.3]}
8... fxe4 {[%clk 0:13:35]} 9. Nxe4 {[%clk 0:14:36.3]} 9... Qa5 {[%clk
0:13:06.7]} 10. Ne6 {[%clk 0:14:30.2]} 10... Be7 {[%clk 0:12:44]} 11. Nxc7+
{[%clk 0:14:29.8]} 11... Qxc7 {[%clk 0:12:40.5]} 12. Qf3 {[%clk 0:14:09.4]}
12... Qxc4 {[%clk 0:12:19.3]} 13. b3 {[%clk 0:13:57]} 13... Qxc2 {[%clk
0:11:55.1]} 14. Bb2 {[%clk 0:13:43.9]} 14... Qxb2 {[%clk 0:11:50.2]} 15. Rab1
{[%clk 0:13:47]} 15... Qxa2 {[%clk 0:11:40.9]} 16. Ra1 {[%clk 0:13:49.8]} 16...
Qa6 {[%clk 0:11:27]} 17. Nc3 {[%clk 0:13:47.5]} 17... Qb6+ {[%clk 0:11:18.7]}
18. Qf2 {[%clk 0:13:37.5]} 18... Qxb3 {[%clk 0:10:55.9]} 19. Rab1 {[%clk
0:13:39.6]} 19... Qd5 {[%clk 0:10:50]} 20. Nxd5 {[%clk 0:13:42.4]} 20... Ng4
{[%clk 0:10:48.6]} 21. Qg3 {[%clk 0:13:43.4]} 21... Ne5 {[%clk 0:10:46.7]} 22.
d4 {[%clk 0:13:40.7]} 22... Nc4 {[%clk 0:10:40.7]} 23. Qxg7 {[%clk 0:13:43.5]}
23... Bf6 {[%clk 0:10:33]} 24. Qxf6 {[%clk 0:13:41.6]} 24... Nd7 {[%clk
0:10:27.1]} 25. Qxh8+ {[%clk 0:13:43.4]} 25... Nf8 {[%clk 0:10:21.8]} 26. Nc7+
{[%clk 0:13:36.9]} 26... Kd7 {[%clk 0:10:16.1]} 27. Nxa8 {[%clk 0:13:39.7]}
27... Ne6 {[%clk 0:10:14]} 28. Ra1 {[%clk 0:13:36.2]} 28... Ne3 {[%clk
0:10:07.5]} 29. Rfe1 {[%clk 0:13:36.5]} 29... Nc2 {[%clk 0:10:09.1]} 30. Rf1
{[%clk 0:13:39.7]} 30... Nxa1 {[%clk 0:10:11.2]} 31. Qg7+ {[%clk 0:13:42.9]}
31... Nxg7 {[%clk 0:10:13.5]} 32. Rf7+ {[%clk 0:13:35.6]} 32... Ke6 {[%clk
0:10:06.5]} 33. Rf1 {[%clk 0:13:36.9]} 33... Nc2 {[%clk 0:10:03]} 34. Nc7+
{[%clk 0:13:36.5]} 34... Kd7 {[%clk 0:09:56.9]} 35. Nb5 {[%clk 0:13:39.8]} 35...
Ne3 {[%clk 0:09:54.7]} 36. Nxa7 {[%clk 0:13:42.3]} 36... Nxf1 {[%clk 0:09:55.9]}
37. Nxc8 {[%clk 0:13:45.8]} 37... Kxc8 {[%clk 0:09:58.9]} 38. Kxf1 {[%clk
0:13:49.4]} 38... b5 {[%clk 0:10:00.8]} 39. d5 {[%clk 0:13:52.6]} 39... b4
{[%clk 0:10:03.4]} 40. Ke1 {[%clk 0:13:56.4]} 40... Nf5 {[%clk 0:10:05.2]} 41.
Kd1 {[%clk 0:14:00.2]} 41... Ne3+ {[%clk 0:10:07.3]} 42. Kc1 {[%clk 0:14:00.4]}
42... h5 {[%clk 0:10:09.4]} 43. Kb2 {[%clk 0:14:04.2]} 43... Nd1+ {[%clk
0:10:10.1]} 44. Kb3 {[%clk 0:14:07.7]} 44... Ne3 {[%clk 0:10:06]} 45. Kxb4
{[%clk 0:14:11.5]} 45... Nxd5+ {[%clk 0:10:04.1]} 46. Kc4 {[%clk 0:14:14.2]}
46... Ne3+ {[%clk 0:10:01.8]} 47. Kd4 {[%clk 0:14:15.8]} 47... Nxg2 {[%clk
0:10:03]} 48. Kd5 {[%clk 0:14:19.5]} 48... Ne3+ {[%clk 0:09:59.2]} 49. Kxd6
{[%clk 0:14:23.3]} 1/2-1/2